Cogmind - Beta 16 @@@ ROGUE MODE // 2025.11.09 @ 03:02:59 Player: Demo Result: Destroyed by NU-70A(R) with Subdweller Machine Gun Performance ------------- Evolutions (0) 0 Regions Visited (2) 400 Robots Destroyed (0) 0 Value Destroyed (0) 0 Prototype IDs (12) 240 Alien Tech Used (0) 0 Bonus (0) 0 TOTAL SCORE: 640 Bonus ------- None Cogmind --------- Core Integrity 0/250 Matter 300/300 Energy 99/100 System Corruption 0% Temperature Cool (0) Movement Core (50) Location -10/Subcaves Parts ------- > --- POWER (1) -------- (None) > --- PROPULSION (2) --- Light Treads > --- UTILITY (2) ------ (None) > --- WEAPON (2) ------- (None) > --- INVENTORY (5) ---- Subdweller Power Source Subdweller Power Source Makeshift Power Source Makeshift Light Armor Plating Power Bank Peak State ------------ > --- POWER ------------ (None) > --- PROPULSION ------- Light Treads Spiked Treads > --- UTILITY ---------- Light Armor Plating > --- WEAPON ----------- Subdweller Laser > --- INVENTORY -------- Subdweller Power Source Subdweller Power Source Makeshift Power Source Makeshift Light Armor Plating Power Bank [Rating: 8] Favorites ----------- Power None Propulsion Light Treads Treads Light Treads Leg Makeshift Leg Utility Light Armor Plating Protection Light Armor Plating Weapon Subdweller Laser Energy Gun Subdweller Laser Build | -11 -10 -10 ------- Run | Yrd Mat Sub Slots Evolved . | . . . Power . | . . . Propulsion . | . . . Utility . | . . . Weapon . | . . . Parts Attached 8 | 2 . 6 Power . | . . . Engine . | . . . Core . | . . . Reactor . | . . . Propulsion 6 | 2 . 4 Treads 4 | 2 . 2 Leg 2 | . . 2 Wheel . | . . . Hover . | . . . Flight . | . . . Utility 1 | . . 1 Device . | . . . Storage . | . . . Processor . | . . . Hackware . | . . . Protection 1 | . . 1 Artifact . | . . . Weapon 1 | . . 1 Energy Gun 1 | . . 1 Energy Cannon . | . . . Ballistic Gun . | . . . Ballistic Cannon . | . . . Launcher . | . . . Special Weapon . | . . . Impact Weapon . | . . . Slashing Weapon . | . . . Piercing Weapon . | . . . Special Melee Weapon . | . . . Unidentified Prototypes . | . . . Parts Lost 5 | . . 5 Power . | . . . Propulsion 4 | . . 4 Utility 1 | . . 1 Weapon . | . . . Highest Loss Streak 2 | . . 2 To Critical Strikes . | . . . Average Backups 2 | . . 2 Power 1 | . . 1 Propulsion . | . . . Utility . | . . . Weapon . | . . . Tool/Special . | . . . Unused Backups 5 | . . 5 Power 3 | . . 3 Propulsion . | . . . Utility 2 | . . 2 Weapon . | . . . Tool/Special . | . . . Average Slot Usage (%) 32 | . 28 33 Treads 19 | . 28 18 Leg 2 | . . 3 Protection 6 | . . 7 Energy Gun 3 | . . 3 Peak Build Rating 8 | 2 2 8 Average Rating 4 | 1 2 4 On Entrance 1 | . 2 2 Avg Prop Armor Cover (%) 31 | 39 41 31 Naked Turns 58 | . . 58 Heaviest Build 7 | . . 7 Greatest Support 3 | 3 3 3 Greatest Overweight (x) 2 | . . 2 Average Overweight (x) . | . . . Largest Inventory Capacity 5 | 5 5 5 Average Capacity 5 | 5 5 5 Most Carried 5 | . . 5 Average Carried 2 | . . 2 Final Capacity 5 | 5 5 5 Final Carried 5 | . . 5 Class Distribution -------------------- 100% | Mutant Dominant Class ---------------- Mutant | -10/Materials Mutant | -10/Subcaves Resources | -11 -10 -10 ----------- Run | Yrd Mat Sub Matter Collected 280 | 137 83 60 Remotely . | . . . Salvage Created . | . . . Parts . | . . . Haulers Intercepted . | . . . Recyclers Shooed . | . . . Parts Field Recycled . | . . . Retrieved Matter . | . . . Parts Self-Destructed 12 | . . 12 Prevented . | . . . Parts Restored . | . . . Kills | -11 -10 -10 ------- Run | Yrd Mat Sub Combat Hostiles Destroyed . | . . . Classes Destroyed . | . . . Best Kill Streak . | . . . Combat Bots Only . | . . . Max Kills in Single Turn . | . . . Gunslinging . | . . . Exploded . | . . . Melee . | . . . Uniques/NPCs Destroyed . | . . . Combat | -11 -10 -10 -------- Run | Yrd Mat Sub Hostile Shots Fired 62 | . . 62 Missed 22 | . . 22 Hits 40 | . . 40 Projectile 40 | . . 40 AOE 4 | . . 4 Critical Strikes 2 | . . 2 Damage Taken 930 | . . 930 Core 265 | . . 265 Absorbed by Shields . | . . . Core Remaining (%) 100 | 100 . . Volleys Fired 8 | . . 8 Largest 1 | . . 1 Hottest 60 | . . 60 Shots Fired 8 | . . 8 Gun 8 | . . 8 Cannon . | . . . Launcher . | . . . Special . | . . . Kinetic . | . . . Thermal 8 | . . 8 Explosive . | . . . Electromagnetic . | . . . Robot Hit Streak . | . . . Robot Miss Streak . | . . . Penetration Max . | . . . Secondary Targets . | . . . Shots Hit Robots . | . . . Core Hits . | . . . Critical Kills . | . . . Critical Parts Destroyed . | . . . Critical Strikes . | . . . Melee Attacks . | . . . Impact . | . . . Slashing . | . . . Piercing . | . . . Sneak Attacks . | . . . Combat Hostiles . | . . . Follow-up Attacks . | . . . Damage Inflicted . | . . . Guns . | . . . Cannons . | . . . Explosions . | . . . Melee . | . . . Ramming . | . . . Kinetic . | . . . Thermal . | . . . Explosive . | . . . Electromagnetic . | . . . Impact . | . . . Slashing . | . . . Piercing . | . . . Highest Corruption . | . . . Average Corruption . | . . . Corruption Purged . | . . . Corruption Blocked . | . . . Overload Shots . | . . . Overflow Damage . | . . . Projectiles . | . . . Explosions . | . . . Melee . | . . . Knockbacks . | . . . Impact . | . . . Kinetic . | . . . Secondary . | . . . Self-Inflicted Damage . | . . . Shots . | . . . Rammed . | . . . Targets Rammed . | . . . Kicked . | . . . Crushed . | . . . Highest Temperature . | . . . Average Temperature . | . . . Received Heat Transfer 183 | . . 183 Siege Activations . | . . . Martial Activations . | . . . Shielding Activations . | . . . Robots Disrupted . | . . . Combat Hostiles . | . . . Robots Corrupted . | . . . Combat Hostiles . | . . . Parts Fried . | . . . Impact Corruptions . | . . . Robots Melted . | . . . Combat Hostiles . | . . . Parts Melted . | . . . Heat Transferred . | . . . Parts Sabotaged . | . . . Parts Stolen . | . . . Parts Stripped . | . . . Power Chain Reactions . | . . . Alert | -11 -10 -10 ------- Run | Yrd Mat Sub Maximum Alert Level . | . . . Low Security (%) 100 | 100 100 . Level 1 . | . . . Level 2 . | . . . Level 3 . | . . . Level 4 . | . . . Level 5 . | . . . High Security . | . . . Max Security . | . . . Peak Influence . | . . . Initial . | . . . Average . | . . . Influence Increases 75 | . . 75 Lose Combat Pursuer 75 | . . 75 Influence Decreases 75 | . . 75 Time Decay 63 | . . 63 Lost Part 12 | . . 12 Squads Dispatched 1 | . 1 . Investigation . | . . . Extermination . | . . . Reinforcement 1 | . 1 . Assault . | . . . Garrison . | . . . Intercept . | . . . Searches Triggered . | . . . Construction Impeded . | . . . Haulers Reinforced . | . . . Active Scanning Responses . | . . . Cargo Convoy Interrupts . | . . . Stealth | -11 -10 -10 --------- Run | Yrd Mat Sub Distress Signals . | . . . Communications Jammed . | . . . Distress Signals . | . . . Times Spotted 13 | . 1 12 Peak Tracking Total 4 | . 1 4 Tactical Retreats 7 | . . 7 Traps | -11 -10 -10 ------- Run | Yrd Mat Sub Traps Triggered 2 | . . 2 Indirectly . | . . . Trap Hack Attempts . | . . . Triggered . | . . . Disarmed . | . . . Reprogrammed . | . . . Reused . | . . . Traps Extracted . | . . . Installed . | . . . Triggered . | . . . Machines | -11 -10 -10 ---------- Run | Yrd Mat Sub Machines Disabled 1 | . . 1 Max in Single Turn 1 | . . 1 Machines Repaired . | . . . Machines Dismantled . | . . . Machines Sabotaged . | . . . Overloaded Fab Kills . | . . . Hacking | -11 -10 -10 --------- Run | Yrd Mat Sub Machines Accessed 1 | . . 1 Terminals . | . . . Fabricators . | . . . Repair Stations . | . . . Recycling Units . | . . . Scanalyzers . | . . . Garrison Access . | . . . Total Hacks 1 | . . 1 Successful 1 | . . 1 Failed . | . . . Catastrophic . | . . . Database Lockouts . | . . . Manual . | . . . Terminals . | . . . Fabricators . | . . . Repair Stations . | . . . Recycling Units . | . . . Scanalyzers . | . . . Garrison Access . | . . . Terminal Hacks 1 | . . 1 Proto ID Catalog 1 | . . 1 Fabricator Hacks . | . . . Repair Station Hacks . | . . . Recycling Unit Hacks . | . . . Scanalyzer . | . . . Garrison Access Hacks . | . . . Unauthorized Hacks . | . . . Terminals . | . . . Fabricators . | . . . Repair Stations . | . . . Recycling Units . | . . . Scanalyzers . | . . . Garrison Access . | . . . Data Cores Recovered . | . . . Used . | . . . Hacking Detections . | . . . Full Trace Events . | . . . Feedback Events . | . . . Feedback Blocked . | . . . Robot Schematics Acquired . | . . . Robots Built . | . . . Authchips . | . . . Time . | . . . Total Robot Build Rating . | . . . Part Schematics Acquired . | . . . Parts Built . | . . . Authchips . | . . . Time . | . . . Total Part Build Rating . | . . . Part Studies Acquired . | . . . Parts Repaired . | . . . Time . | . . . Parts Recycled . | . . . Recycled Matter . | . . . Retrieved Matter . | . . . Retrieved Components . | . . . Parts Scanalyzed . | . . . Part Schematics Acquired . | . . . Parts Damaged . | . . . Bothacking | -11 -10 -10 ------------ Run | Yrd Mat Sub Used RIF Installer . | . . . Robots Hacked . | . . . Non-combat . | . . . Combat . | . . . Robot Hacks Applied . | . . . Relay Couplers Released . | . . . Fabnet Peak Effective % . | . . . Robots Rewired . | . . . Allies Hacked . | . . . Hacks Repelled . | . . . Allies | -11 -10 -10 -------- Run | Yrd Mat Sub Total Allies . | . . . Largest Group . | . . . Highest-Rated Group . | . . . Highest-Rated Ally . | . . . Total Orders . | . . . Ally Attacks . | . . . Total Damage . | . . . Kills . | . . . Allies Corrupted . | . . . Allies Melted . | . . . Intel | -11 -10 -10 ------- Run | Yrd Mat Sub Active Infowar (turns) . | . . . Robot Analysis Total . | . . . Derelict Logs Recovered 2 | . . 2 Drone Launches . | . . . Drone Recoveries . | . . . Exploration | -11 -10 -10 ------------- Run | Yrd Mat Sub Turns Passed 814 | 16 96 702 Spaces Moved 1140 | 27 47 1066 Core 1140 | 27 47 1066 Treads . | . . . Legs . | . . . Wheels . | . . . Hover . | . . . Flight . | . . . Fastest Speed 50 | 50 50 50 Average Speed 60 | 50 50 60 Slowest Speed 150 | 50 50 150 Overloaded Moves . | . . . Propulsion Burnouts . | . . . Robots Hopped . | . . . Potential Cave-ins . | . . . Cave-ins Triggered . | . . . Exploration Rate (%) 27 | 4 10 68 Regions Visited 2 Branch Regions 1 Pre-discovered Areas . | . . . Known Exits Taken . | . . . Unknown Exits Taken 2 | 1 1 . Scrap Searched 2 | . . 2 Spaces Dug . | . . . Terrain Destroyed . | . . . Melee . | . . . Projectile . | . . . AOE . | . . . Terrain Rammed . | . . . Walls Destroyed . | . . . Machines Disabled . | . . . Actions | -11 -10 -10 --------- Run | Yrd Mat Sub Total 1252 | 28 118 1106 Wait 90 | . 72 18 Move 1138 | 26 46 1066 Hop . | . . . Pick Up 6 | . . 6 Fast Attach 7 | 2 . 5 Attach 1 | . . 1 Detach . | . . . Swap . | . . . Drop 2 | . . 2 Fire 8 | . . 8 Melee . | . . . Ram . | . . . Kick . | . . . Crush . | . . . Escape Stasis . | . . . Rewire . | . . . Trap . | . . . Miscellaneous . | . . . Route ------- -11/Scrapyard -10/Materials -10/Subcaves (discovered 2 exits: [*Mat x2]) History --------- Turn | Location | Event 5 | -11/Scrapyard | Discovered new exit (range 15) 17 | -11/Scrapyard | Entered Materials 98 | -10/Materials | Discovered new exit (range 5) 113 | -10/Materials | Entered Subcaves 122 | -10/Subcaves | Learned Materials emergency access door positions 130 | -10/Subcaves | Learned location of 1 exit from Materials 279 | -10/Subcaves | Discovered new exit (range 7) 295 | -10/Subcaves | Discovered new exit (range 10) 296 | -10/Subcaves | Shifting Twisted Machinery released Sub. Power Source 312 | -10/Subcaves | Build established: Mutant 344 | -10/Subcaves | Shifting Twisted Machinery released Sub. Laser 376 | -10/Subcaves | Core integrity fell below 50% 423 | -10/Subcaves | A swath of the cavern ceiling suddenly collapsed 585 | -10/Subcaves | Visited 4L-MR0's lab 616 | -10/Subcaves | Found Power Bank 740 | -10/Subcaves | Core integrity fell below 20% 815 | -10/Subcaves | Destroyed by NU-70A(R) with Subdweller Machine Gun Last Messages --------------- Downloading prototype IDs... Meta Core Arachnoskeleton Cargo Legs Tripod Weapons Platform Hoverbase Flightbrick Gun Armor Tower Shield Power Bank Rainbow Chip VL-GR5's Exoskeleton "Deathgrip" Powered Cannon 00616_ Acquired Power Bank. 00733_ Critical hit (Burn: +37). 00736_ Lgt. Armor Plating destroyed. 00737_ Dropped Sub. Laser. 00742_ Critical hit (Burn: +37). 00814_ Spk. Treads destroyed. Map ----- +----------------------------------------------------+ | | | | | | | | | | | | | | | ?????????????????????????????????????????????????? | | ?????????????????????????????????????????????????? | | ?????????????????????????????????????????????????? | | ?????????????????????????????????????????????????? | | ?????????????????????????????????????????????????? | | ?????????????????????????????????????????????????? | | ?????????????????????????????????????????????????? | | ?????????????????????????????????????????????????? | | ?????????????????????????????????????????????????? | | ?????????????????????????????????????????????????? | | ?????????????????????????????????????????????????? | | ?????????????????????????????????????????????????? | | ?????????????????????????????????????????????????? | | ?????????????????????????????????????????????????? | | ?????????????????????????####??##????????????????? | | ????????????????????????## ### ##???????????????? | | ????????????????????????# ## #???????????????? | | ???????????????????????## ## #???????????????? | | ??????????????????????## @### #???????????????? | | ??????????????????????# #?# #???????????????# | | ??????????????????????# #?# ##??????????????# | | ?????????????????????## #?# #??????????????# | | ?????????????????????# #?# #??????????????# | | ????????????????????## ##### #??????????????# | | ???????????????????## ##?## #??????????????# | | ???????????????##### #??# #??????????????# | | ???????????????# R #?## ##??????????????? | | ???????????????# ##?# ###???????????????? | | ???????????????# R #??# #?????????????????? | | ??????????????## ##??# ##????????????????? | | ??????????????# ##??## #????????????????? | | ??????????????### ##??# #????????????????# | | ???????????????## ##?# ##???????????????# | | ??????????????## ### #???????????????# | | ??????????????# ##??????????????# | | ??????????????# #??????????????# | | ??????????????# ##?????????????## | | ??????????????# ##??????????????# | | ??????????????# #???????????????# | | ??????????????# ##??????????????## | | ??????????????# ## #??????????????# | | ??????????????# #?# ### ## #?????????????## | | ??????????????###??## # ##?# #?????????????# | +----------------------------------------------------+ Best States ------------- Heat Dissipation 25 Energy Generation 5 Energy Capacity 100 Matter Stores 300 Matter Capacity 300 Sight Range 16 Terrain Scan Density 10 Armor Coverage 150 Evasion (%) 50 Recoil Reduction 2 Item Schematics ----------------- None Robot Schematics ------------------ None Fabricated ------------ Nothing Repaired ---------- Nothing Studied --------- None Alien Tech Used ----------------- None Achievements -------------- None Challenges ------------ None Game ------ Seed PortableBiomechanicalLoader Manual? 0 Play Time 00:07:22 Cumulative 389.2 hours Start 2025.11.09 @ 02:59:06 End 2025.11.09 @ 03:02:59 Sessions 1 Manual Loads 0 Difficulty Rogue Special Mode None Game No. 359 Rogue 359 Adventurer 0 Explorer 0 Win Type - Total 3 Types 2/1/0/0/0/0/0/0/0/0 Lore% 84 Gallery% 83 Achievement% 62 Wizard Run 0 Options --------- Layout 1 ASCII 0 Keyboard 0 Movement Numpad Keybinds 0 Fullscreen 1 Font 24/Smallcaps Map View 50x35 Zoom Use 0% Tactical HUD 1 Map Filters NONE Filters NONE Steam 1 RUN: 14bdde82-898d-45a6-b7d7-b1b8c0b06ff2